fUST/lending_fUST_20250522
["ID","MTS","AMOUNT","RATE_DAILY","PERIOD"]
[361904076,1747878645422,-499.79458827,0.00025,120]
[361904077,1747878645431,-160.57354554,0.00025,7]
[361904078,1747878645440,-676.71192505,0.00025,2]
[361904079,1747878645451,-62443.91456171,0.00025,2]
[361904080,1747878645731,-28.47598692,0.00025,2]
[361904081,1747878645743,-2084.55704137,0.00025,2]
[361904082,1747878645754,-11594.68241638,0.00025,2]
[361904083,1747878645766,-43848.36999362,0.00025,2]
[361904084,1747878645776,-347030.95972465,0.00025,20]
[361904085,1747878645787,-304.46844193,0.00025,20]
[361904086,1747878645817,-275.45,0.00021917,2]
[361904087,1747878645827,-407.103,0.00024576,2]
[361904088,1747878645836,-11321.39966314,0.00025,20]
[361904089,1747878645871,-430.0,0.00021917,2]
[361904090,1747878645880,-430.0,0.00022191,2]
[361904091,1747878645891,-300.79115307,0.00022465,2]
[361904092,1747878645900,-132583.30398166,0.00025,20]
[361904121,1747879215825,500.0,0.00015,2]
[361904124,1747879556126,-180.29243931,0.00016494,2]
[361904126,1747879629080,-440.87888975,0.00016329,2]
[361904127,1747879632156,-4559.12111025,0.00016329,2]
[361904128,1747879632178,-445.65294564,0.0001683,2]
[361904129,1747879632214,-500.0,0.00017,2]
[361904130,1747879632239,-525.22775156,0.000189,2]
[361904134,1747879753154,-2607.11894815,0.00018711,2]
[361904135,1747879753180,-150.0,0.000189,2]
[361904136,1747879753203,-1200.0,0.00018998,2]
[361904137,1747879753229,-300.0,0.00018999,2]
[361904138,1747879753254,-259.0,0.00018999,2]
[361904139,1747879753277,-2000.0,0.00019,2]
[361904140,1747879753301,-300.0,0.00019213,2]
[361904141,1747879753327,-9274.98544088,0.00019214,2]
[361904142,1747879753354,-1112.65647992,0.00019214,2]
[361904143,1747879753376,-216.230777,0.00019449,2]
[361904144,1747879753408,-1243.96884518,0.000199,2]
[361904145,1747879753430,-1000.0,0.0002,10]
[361904146,1747879753457,-1243.96884507,0.00020141,2]
[361904147,1747879753481,-1243.96884507,0.00020383,3]
[361904148,1747879753506,-1243.96884507,0.00020624,3]
[361904149,1747879753527,-1912.17,0.00020799,3]
[361904150,1747879753548,-753.0,0.00020808,2]
[361904151,1747879753571,-1243.96884507,0.00020866,4]
[361904152,1747879762118,-1000.0,0.00021,2]
[361904153,1747879762148,-1243.96884507,0.00021107,4]
[361904154,1747879762169,-200.53985225,0.00021177,2]
[361904155,1747879762192,-1048.46869999,0.00021348,5]
[361904172,1747879832589,-195.50014508,0.00021348,5]
[361904173,1747879832599,-420.65742356,0.0002159,5]
[361904190,1747879838792,-823.31142151,0.0002159,5]
[361904191,1747879838802,-1223.72733911,0.00021817,2]
[361904192,1747879838811,-514.13833616,0.00021831,6]
[361904193,1747879838822,-729.83050891,0.00021831,6]
[361904194,1747879838831,-177.77777415,0.00021917,2]
[361904195,1747879838841,-92.39171694,0.00021917,2]
[361904196,1747879838853,-358.55470031,0.00021917,2]
[361904197,1747879838863,-430.0,0.00021917,2]
[361904198,1747879838873,-400.0,0.00021917,2]
[361904199,1747879838882,-400.50041873,0.00021917,2]
[361904200,1747879838892,-400.47908297,0.00021917,2]
[361904201,1747879838902,-401.3809482,0.00021917,2]
[361904202,1747879838911,-502.88965468,0.00021917,2]
[361904203,1747879838920,-156.17759492,0.00021917,2]
[361904204,1747879838930,-401.86134897,0.00021917,2]
[361904205,1747879838940,-400.0,0.00021917,2]
[361904206,1747879838949,-505.06425729,0.00021917,2]
[361904207,1747879838961,-208.73508252,0.00021917,2]
[361904208,1747879838971,-430.0,0.00021917,2]
[361904209,1747879838981,-430.0,0.00021917,2]
[361904210,1747879838990,-400.0,0.00021917,2]
[361904211,1747879838999,-458.20497017,0.00021917,2]
[361904212,1747879839008,-504.52622639,0.00021917,2]
[361904213,1747879839017,-430.0,0.00021917,2]
[361904214,1747879839027,-430.0,0.00021917,2]
[361904215,1747879839036,-430.0,0.00021917,2]
[361904216,1747879839046,-244.64479935,0.00021917,2]
[361904217,1747879839058,-157.89744202,0.00021917,2]
[361904218,1747879839068,-401.61886442,0.00021917,2]
[361904219,1747879839077,-403.14833672,0.00021917,2]
[361904220,1747879839087,-432.68468242,0.00021917,2]
[361904221,1747879839095,-432.85968984,0.00021917,2]
[361904222,1747879839106,-159.58295906,0.00021917,2]
[361904223,1747879839115,-401.82597593,0.00021917,2]
[361904224,1747879839124,-430.0,0.00021917,2]
[361904225,1747879839133,-420.03764651,0.00021917,2]
[361904226,1747879839145,-0.13845116,0.00021917,2]
[361904227,1747879839154,-430.0,0.00021917,2]
[361904228,1747879839163,-430.0,0.00021917,2]
[361904229,1747879839173,-430.0,0.00021917,2]
[361904230,1747879839182,-430.0,0.00021917,2]
[361904231,1747879839192,-430.0,0.00021917,2]
[361904232,1747879839202,-520.62143954,0.00021917,2]
[361904233,1747879839214,-504.51250397,0.00021917,2]
[361904234,1747879839223,-275.41652247,0.00021917,2]
[361904235,1747879839233,-430.0,0.00021917,2]
[361904236,1747879839242,-403.19021788,0.00021917,2]
[361904237,1747879839255,-260.0,0.00021917,2]
[361904238,1747879839264,-260.0,0.00021917,2]
[361904239,1747879839274,-430.0,0.00021917,2]
[361904240,1747879839283,-430.0,0.00021917,2]
[361904241,1747879839294,-430.0,0.00021917,2]
[361904242,1747879839305,-197.29933521,0.00021917,2]
[361904243,1747879839314,-400.0,0.00021917,2]
[361904244,1747879839324,-430.0,0.00021917,2]
[361904245,1747879839336,-430.0,0.00021917,2]
[361904246,1747879839346,-455.08367219,0.00021917,2]
[361904247,1747879839356,-453.05177797,0.00021917,2]
[361904248,1747879839365,-505.89898457,0.00021917,2]
[361904249,1747879839374,-452.87921709,0.00021917,2]
[361904250,1747879839383,-430.0,0.00021917,2]
[361904251,1747879839393,-351.22284102,0.00021917,2]
[361904252,1747879839403,-357.16532336,0.00021917,2]
[361904253,1747879839412,-430.0,0.00021917,2]
[361904254,1747879839421,-430.0,0.00021917,2]
[361904255,1747879839430,-430.0,0.00021917,2]
[361904256,1747879839439,-430.0,0.00021917,2]
[361904257,1747879839449,-451.57756083,0.00021917,2]
[361904258,1747879839458,-430.0,0.00021917,2]
[361904259,1747879839468,-430.0,0.00021917,2]
[361904260,1747879839477,-357.51626057,0.00021917,2]
[361904261,1747879839486,-430.0,0.00021917,2]
[361904262,1747879839495,-430.0,0.00021917,2]
[361904263,1747879839505,-410.758296,0.00021917,2]
[361904264,1747879839514,-430.0,0.00021917,2]
[361904265,1747879839523,-430.0,0.00021917,2]
[361904266,1747879839532,-430.0,0.00021917,2]
[361904267,1747879839542,-430.0,0.00021917,2]
[361904268,1747879839552,-430.0,0.00021917,2]
[361904269,1747879839561,-430.0,0.00021917,2]
[361904270,1747879839570,-430.0,0.00021917,2]
[361904271,1747879839580,-430.0,0.00021917,2]
[361904272,1747879839589,-430.0,0.00021917,2]
[361904273,1747879839599,-430.0,0.00021917,2]
[361904274,1747879839609,-430.0,0.00021917,2]
[361904275,1747879839618,-430.0,0.00021917,2]
[361904276,1747879839630,-406.48397188,0.00021917,2]
[361904277,1747879839640,-430.0,0.00021917,2]
[361904278,1747879839650,-430.0,0.00021917,2]
[361904279,1747879839660,-430.0,0.00021917,2]
[361904280,1747879839669,-430.0,0.00021917,2]
[361904281,1747879839679,-430.0,0.00021917,2]
[361904282,1747879839688,-430.0,0.00021917,2]
[361904283,1747879839698,-430.0,0.00021917,2]
[361904284,1747879839709,-430.0,0.00021917,2]
[361904285,1747879839719,-430.0,0.00021917,2]
[361904286,1747879839729,-430.0,0.00021917,2]
[361904287,1747879839738,-430.0,0.00021917,2]
[361904288,1747879839747,-430.0,0.00021917,2]
[361904289,1747879839757,-430.0,0.00021917,2]
[361904290,1747879839766,-450.0,0.00021917,2]
[361904291,1747879839775,-430.0,0.00021917,2]
[361904292,1747879839785,-430.0,0.00021917,2]
[361904293,1747879839795,-430.0,0.00021917,2]
[361904294,1747879839805,-430.0,0.00021917,2]
[361904295,1747879839814,-430.0,0.00021917,2]
[361904296,1747879839824,-456.73508157,0.00021917,2]
[361904297,1747879839833,-430.0,0.00021917,2]
[361904298,1747879839843,-430.0,0.00021917,2]
[361904299,1747879839853,-430.0,0.00021917,2]
[361904300,1747879839863,-430.0,0.00021917,2]
[361904301,1747879839873,-430.0,0.00021917,2]
[361904302,1747879839883,-430.0,0.00021917,2]
[361904303,1747879839893,-295.01421105,0.00021917,2]
[361904304,1747879839902,-265.10031882,0.00021917,2]
[361904305,1747879839912,-455.29490475,0.00021917,2]
[361904306,1747879839921,-430.0,0.00021917,2]
[361904307,1747879839931,-430.0,0.00021917,2]
[361904308,1747879839941,-430.0,0.00021917,2]
[361904309,1747879839950,-504.81630172,0.00021917,2]
[361904310,1747879839962,-430.0,0.00021917,2]
[361904311,1747879839972,-430.0,0.00021917,2]
[361904312,1747879839981,-430.0,0.00021917,2]
[361904313,1747879839991,-430.0,0.00021917,2]
[361904314,1747879840001,-430.0,0.00021917,2]
[361904315,1747879840011,-430.0,0.00021917,2]
[361904316,1747879840021,-571.47528225,0.00021917,2]
[361904317,1747879840030,-314.50042706,0.00021917,2]
[361904318,1747879840039,-430.0,0.00021917,2]
[361904319,1747879840049,-430.0,0.00021917,2]
[361904320,1747879840058,-430.0,0.00021917,2]
[361904321,1747879840068,-320.0,0.00021917,2]
[361904322,1747879840077,-430.0,0.00021917,2]
[361904324,1747879840087,-405.97320413,0.00021917,2]
[361904325,1747879840097,-430.0,0.00021917,2]
[361904326,1747879840106,-430.0,0.00021917,2]
[361904327,1747879840115,-430.0,0.00021917,2]
[361904328,1747879840125,-430.0,0.00021917,2]
[361904329,1747879840134,-430.0,0.00021917,2]
[361904330,1747879840143,-406.29765375,0.00021917,2]
[361904331,1747879840153,-430.0,0.00021917,2]
[361904332,1747879840162,-430.0,0.00021917,2]
[361904333,1747879840172,-430.0,0.00021917,2]
[361904334,1747879840181,-410.27104647,0.00021917,2]
[361904335,1747879840190,-430.0,0.00021917,2]
[361904336,1747879840200,-430.0,0.00021917,2]
[361904337,1747879840210,-430.0,0.00021917,2]
[361904338,1747879840219,-430.0,0.00021917,2]
[361904339,1747879840229,-430.0,0.00021917,2]
[361904340,1747879840238,-430.0,0.00021917,2]
[361904341,1747879840248,-430.0,0.00021917,2]
[361904342,1747879840259,-430.0,0.00021917,2]
[361904343,1747879840270,-430.0,0.00021917,2]
[361904344,1747879840280,-430.0,0.00021917,2]
[361904345,1747879840289,-430.0,0.00021917,2]
[361904346,1747879840299,-430.0,0.00021917,2]
[361904347,1747879840308,-430.0,0.00021917,2]
[361904348,1747879840317,-430.0,0.00021917,2]
[361904349,1747879840326,-409.09803453,0.00021917,2]
[361904350,1747879840335,-430.0,0.00021917,2]
[361904351,1747879840345,-430.0,0.00021917,2]
[361904352,1747879840354,-430.0,0.00021917,2]
[361904353,1747879840364,-430.0,0.00021917,2]
[361904355,1747879840373,-430.0,0.00021917,2]
[361904356,1747879840383,-430.0,0.00021917,2]
[361904357,1747879840392,-215.3551031,0.00021917,2]
[361904358,1747879840402,-430.0,0.00021917,2]
[361904359,1747879840411,-430.0,0.00021917,2]
[361904360,1747879840421,-430.0,0.00021917,2]
[361904361,1747879840431,-430.0,0.00021917,2]
[361904362,1747879840441,-430.0,0.00021917,2]
[361904363,1747879840450,-430.0,0.00021917,2]
[361904364,1747879840461,-438.94,0.00021917,2]
[361904365,1747879840470,-430.0,0.00021917,2]
[361904366,1747879840480,-430.0,0.00021917,2]
[361904367,1747879840490,-430.0,0.00021917,2]
[361904368,1747879840499,-430.0,0.00021917,2]
[361904369,1747879840509,-430.0,0.00021917,2]
[361904370,1747879840518,-430.0,0.00021917,2]
[361904371,1747879840528,-430.0,0.00021917,2]
[361904372,1747879840537,-430.0,0.00021917,2]
[361904373,1747879840547,-430.0,0.00021917,2]
[361904374,1747879840556,-430.0,0.00021917,2]
[361904375,1747879840566,-227.70660154,0.00021917,2]
[361904376,1747879840575,-430.0,0.00021917,2]
[361904377,1747879840585,-430.0,0.00021917,2]
[361904378,1747879840594,-430.0,0.00021917,2]
[361904379,1747879840735,-430.0,0.00021917,2]
[361904380,1747879840747,-430.0,0.00021917,2]
[361904381,1747879840757,-430.0,0.00021917,2]
[361904382,1747879840767,-430.0,0.00021917,2]
[361904383,1747879840777,-430.0,0.00021917,2]
[361904384,1747879840787,-430.0,0.00021917,2]
[361904385,1747879840796,-248.72194273,0.00021917,2]
[361904386,1747879840805,-430.0,0.00021917,2]
[361904387,1747879840814,-430.0,0.00021917,2]
[361904388,1747879840824,-166.35129202,0.00021917,2]
[361904389,1747879840833,-405.34130817,0.00021917,2]
[361904390,1747879840842,-471.37319427,0.00021917,2]
[361904392,1747879840852,-430.0,0.00021917,2]
[361904394,1747879840862,-430.0,0.00021917,2]
[361904396,1747879840871,-474.85,0.00021917,2]
[361904398,1747879840881,-458.26211048,0.00021917,2]
[361904400,1747879840890,-457.13614709,0.00021917,2]
[361904402,1747879840899,-420.53821797,0.00021917,2]
[361904404,1747879840909,-430.0,0.00021917,2]
[361904406,1747879840918,-430.0,0.00021917,2]
[361904408,1747879840928,-438.85157188,0.00021917,2]
[361904410,1747879840937,-430.0,0.00021917,2]
[361904412,1747879840947,-430.0,0.00021917,2]
[361904414,1747879840956,-405.46772649,0.00021917,2]
[361904415,1747879840970,-470.0,0.00021917,2]
[361904417,1747879840980,-406.70531427,0.00021917,2]
[361904419,1747879840990,-430.0,0.00021917,2]
[361904421,1747879840999,-430.0,0.00021917,2]
[361904423,1747879841009,-430.0,0.00021917,2]
[361904424,1747879841018,-530.42828225,0.00021917,2]
[361904425,1747879841027,-504.4613527,0.00021917,2]
[361904426,1747879841037,-430.0,0.00021917,2]
[361904427,1747879841046,-430.0,0.00021917,2]
[361904428,1747879841055,-430.0,0.00021917,2]
[361904429,1747879841064,-402.64787691,0.00021917,2]
[361904430,1747879841073,-430.0,0.00021917,2]
[361904431,1747879841082,-430.0,0.00021917,2]
[361904432,1747879841091,-430.0,0.00021917,2]
[361904433,1747879841100,-430.0,0.00021917,2]
[361904435,1747879841110,-430.0,0.00021917,2]
[361904436,1747879841119,-1505.78,0.00021917,2]
[361904437,1747879841128,-430.0,0.00021917,2]
[361904438,1747879841137,-430.0,0.00021917,2]
[361904439,1747879841146,-430.0,0.00021917,2]
[361904440,1747879841155,-472.12814731,0.00021917,2]
[361904441,1747879841165,-430.0,0.00021917,2]
[361904442,1747879841176,-1099.12,0.00021917,2]
[361904443,1747879841185,-430.0,0.00021917,2]
[361904444,1747879841194,-430.0,0.00021917,2]
[361904445,1747879841203,-430.0,0.00021917,2]
[361904446,1747879841215,-403.52818242,0.00021917,2]
[361904447,1747879841225,-490.57299698,0.00021917,2]
[361904448,1747879841234,-400.0,0.00021917,2]
[361904449,1747879841243,-430.0,0.00021917,2]
[361904450,1747879841253,-430.0,0.00021917,2]
[361904451,1747879841265,-430.0,0.00021917,2]
[361904452,1747879841274,-430.0,0.00021917,2]
[361904453,1747879841283,-473.56540326,0.00021917,2]
[361904454,1747879841294,-430.0,0.00021917,2]
[361904455,1747879841304,-430.0,0.00021917,2]
[361904456,1747879841313,-430.0,0.00021917,2]
[361904457,1747879841322,-430.0,0.00021917,2]
[361904458,1747879841333,-430.0,0.00021917,2]
[361904459,1747879841342,-430.0,0.00021917,2]
[361904460,1747879841351,-552.76,0.00021917,2]
[361904461,1747879841361,-430.0,0.00021917,2]
[361904462,1747879841370,-430.0,0.00021917,2]
[361904463,1747879841380,-430.0,0.00021917,2]
[361904464,1747879841390,-430.0,0.00021917,2]
[361904465,1747879841399,-430.0,0.00021917,2]
[361904466,1747879841409,-430.0,0.00021917,2]
[361904467,1747879841418,-334.37116385,0.00021917,2]
[361904468,1747879841428,-430.0,0.00021917,2]
[361904469,1747879841437,-403.89836182,0.00021917,2]
[361904470,1747879841447,-445.32150362,0.00021917,2]
[361904471,1747879841456,-408.03601238,0.00021917,2]
[361904472,1747879841467,-430.0,0.00021917,2]
[361904473,1747879841477,-430.0,0.00021917,2]
[361904474,1747879841487,-472.67966896,0.00021917,2]
[361904475,1747879841496,-430.0,0.00021917,2]
[361904476,1747879841505,-430.0,0.00021917,2]
[361904477,1747879841515,-456.8865157,0.00021917,2]
[361904478,1747879841524,-430.0,0.00021917,2]
[361904479,1747879841534,-430.0,0.00021917,2]
[361904480,1747879841543,-430.0,0.00021917,2]
[361904481,1747879841552,-430.0,0.00021917,2]
[361904482,1747879841562,-430.0,0.00021917,2]
[361904483,1747879841571,-430.0,0.00021917,2]
[361904484,1747879841581,-430.0,0.00021917,2]
[361904485,1747879841591,-430.0,0.00021917,2]
[361904486,1747879841600,-430.0,0.00021917,2]
[361904487,1747879841609,-430.0,0.00021917,2]
[361904488,1747879841619,-401.10311682,0.00021917,2]
[361904489,1747879841628,-430.0,0.00021917,2]
[361904490,1747879841637,-430.0,0.00021917,2]
[361904491,1747879841647,-430.0,0.00021917,2]
[361904492,1747879841656,-1148.72,0.00021917,2]
[361904493,1747879841666,-949.93,0.00021917,2]
[361904494,1747879841675,-430.0,0.00021917,2]
[361904495,1747879841684,-430.0,0.00021917,2]
[361904496,1747879841693,-430.0,0.00021917,2]
[361904497,1747879841703,-298.93746281,0.00021917,2]
[361904498,1747879841713,-430.0,0.00021917,2]
[361904499,1747879841723,-430.0,0.00021917,2]
[361904500,1747879841732,-311.65385455,0.00021917,2]
[361904501,1747879841741,-430.0,0.00021917,2]
[361904502,1747879841752,-430.0,0.00021917,2]
[361904503,1747879841762,-430.0,0.00021917,2]
[361904504,1747879841771,-430.0,0.00021917,2]
[361904505,1747879841782,-430.0,0.00021917,2]
[361904506,1747879841793,-430.0,0.00021917,2]
[361904507,1747879841804,-402.19620842,0.00021917,2]
[361904508,1747879841814,-370.0196048,0.00021917,2]
[361904509,1747879841824,-407.520371,0.00021917,2]
[361904510,1747879841834,-430.0,0.00021917,2]
[361904511,1747879841843,-430.0,0.00021917,2]
[361904512,1747879841854,-430.0,0.00021917,2]
[361904513,1747879841866,-430.0,0.00021917,2]
[361904514,1747879841875,-430.0,0.00021917,2]
[361904515,1747879841884,-430.0,0.00021917,2]
[361904516,1747879841894,-430.0,0.00021917,2]
[361904517,1747879841903,-430.0,0.00021917,2]
[361904518,1747879841914,-430.0,0.00021917,2]
[361904519,1747879841923,-430.0,0.00021917,2]
[361904520,1747879841932,-456.19,0.00021917,2]
[361904521,1747879841943,-473.54694317,0.00021917,2]
[361904522,1747879841952,-1013.3,0.00021917,2]
[361904523,1747879841963,-473.7476096,0.00021917,2]
[361904524,1747879841972,-430.0,0.00021917,2]
[361904525,1747879841982,-560.39973459,0.00021917,2]
[361904526,1747879841991,-430.0,0.00021917,2]
[361904527,1747879842001,-430.0,0.00021917,2]
[361904528,1747879842010,-430.0,0.00021917,2]
[361904529,1747879842020,-430.0,0.00021917,2]
[361904530,1747879842030,-430.0,0.00021917,2]
[361904531,1747879842039,-430.0,0.00021917,2]
[361904532,1747879842048,-430.0,0.00021917,2]
[361904533,1747879842057,-430.0,0.00021917,2]
[361904534,1747879842067,-430.0,0.00021917,2]
[361904535,1747879842076,-430.0,0.00021917,2]
[361904536,1747879842085,-402.11302347,0.00021917,2]
[361904537,1747879842094,-430.0,0.00021917,2]
[361904538,1747879842103,-430.0,0.00021917,2]
[361904539,1747879842113,-353.43177733,0.00021917,2]
[361904540,1747879842122,-430.0,0.00021917,2]
[361904541,1747879842131,-430.0,0.00021917,2]
[361904542,1747879842140,-430.0,0.00021917,2]
[361904543,1747879842149,-430.0,0.00021917,2]
[361904544,1747879842159,-430.0,0.00021917,2]
[361904545,1747879842168,-430.0,0.00021917,2]
[361904546,1747879842177,-197.70806257,0.00021917,2]
[361904547,1747879842186,-430.0,0.00021917,2]
[361904548,1747879842196,-401.29280324,0.00021917,2]
[361904549,1747879842205,-430.0,0.00021917,2]
[361904550,1747879842216,-1567.68,0.00021917,2]
[361904551,1747879842225,-430.0,0.00021917,2]
[361904552,1747879842234,-430.0,0.00021917,2]
[361904553,1747879842243,-430.0,0.00021917,2]
[361904554,1747879842253,-430.0,0.00021917,2]
[361904555,1747879842266,-350.46039881,0.00021917,2]
[361904556,1747879842276,-430.0,0.00021917,2]
[361904557,1747879842285,-457.38456133,0.00021917,2]
[361904558,1747879842295,-430.0,0.00021917,2]
[361904559,1747879842304,-430.0,0.00021917,2]
[361904560,1747879842313,-430.0,0.00021917,2]
[361904561,1747879842323,-430.0,0.00021917,2]
[361904562,1747879842332,-430.0,0.00021917,2]
[361904563,1747879842343,-217.8030818,0.00021917,2]
[361904564,1747879842353,-430.0,0.00021917,2]
[361904565,1747879842363,-430.0,0.00021917,2]
[361904566,1747879842373,-430.0,0.00021917,2]
[361904567,1747879842382,-430.0,0.00021917,2]
[361904568,1747879842392,-430.0,0.00021917,2]
[361904569,1747879842402,-430.0,0.00021917,2]
[361904570,1747879842412,-539.84412029,0.00021917,2]
[361904571,1747879842422,-430.0,0.00021917,2]
[361904572,1747879842433,-430.0,0.00021917,2]
[361904573,1747879842443,-577.32966597,0.00021917,2]
[361904574,1747879842453,-430.0,0.00021917,2]
[361904575,1747879842465,-430.0,0.00021917,2]
[361904576,1747879842477,-430.0,0.00021917,2]
[361904577,1747879842486,-430.0,0.00021917,2]
[361904578,1747879842495,-430.0,0.00021917,2]
[361904579,1747879842505,-430.0,0.00021917,2]
[361904580,1747879842514,-352.34221752,0.00021917,2]
[361904581,1747879842524,-430.0,0.00021917,2]
[361904582,1747879842533,-430.0,0.00021917,2]
[361904583,1747879842543,-430.0,0.00021917,2]
[361904584,1747879842552,-430.0,0.00021917,2]
[361904585,1747879842562,-430.0,0.00021917,2]
[361904586,1747879842571,-414.25997631,0.00021917,2]
[361904587,1747879842581,-546.8,0.00021917,2]
[361904588,1747879842590,-430.0,0.00021917,2]
[361904589,1747879842601,-430.0,0.00021917,2]
[361904590,1747879842611,-430.0,0.00021917,2]
[361904591,1747879842621,-498.53,0.00021917,2]
[361904592,1747879842631,-430.0,0.00021917,2]
[361904593,1747879842640,-430.0,0.00021917,2]
[361904594,1747879842650,-430.0,0.00021917,2]
[361904595,1747879842660,-501.19736425,0.00021917,2]
[361904596,1747879842670,-475.99155905,0.00021917,2]
[361904597,1747879842679,-557.2,0.00021917,2]
[361904598,1747879842690,-434.31313167,0.00021917,2]
[361904599,1747879842699,-472.60810396,0.00021917,2]
[361904600,1747879842709,-430.0,0.00021917,2]
[361904601,1747879842722,-430.0,0.00021917,2]
[361904602,1747879842732,-430.0,0.00021917,2]
[361904603,1747879842742,-430.0,0.00021917,2]
[361904604,1747879842751,-430.0,0.00021917,2]
[361904605,1747879842760,-430.0,0.00021917,2]
[361904606,1747879842769,-430.0,0.00021917,2]
[361904607,1747879842779,-250.89548349,0.00021917,2]
[361904608,1747879842788,-430.0,0.00021917,2]
[361904609,1747879842797,-430.0,0.00021917,2]
[361904610,1747879842807,-430.0,0.00021917,2]
[361904611,1747879842817,-350.0,0.00021917,2]
[361904612,1747879842826,-430.0,0.00021917,2]
[361904613,1747879842835,-521.38419876,0.00021917,2]
[361904614,1747879842845,-430.0,0.00021917,2]
[361904615,1747879842855,-430.0,0.00021917,2]
[361904616,1747879842864,-430.0,0.00021917,2]
[361904617,1747879842874,-356.87892435,0.00021917,2]
[361904618,1747879842884,-400.0,0.00021917,2]
[361904619,1747879842894,-430.0,0.00021917,2]
[361904620,1747879842903,-602.46,0.00021917,2]
[361904621,1747879842913,-430.0,0.00021917,2]
[361904622,1747879842923,-430.0,0.00021917,2]
[361904623,1747879842932,-430.0,0.00021917,2]
[361904624,1747879842941,-430.0,0.00021917,2]
[361904625,1747879842951,-430.0,0.00021917,2]
[361904626,1747879842960,-430.0,0.00021917,2]
[361904627,1747879842973,-478.29724161,0.00021917,2]
[361904628,1747879842983,-430.0,0.00021917,2]
[361904629,1747879842992,-430.0,0.00021917,2]
[361904630,1747879843002,-291.63452474,0.00021917,2]
[361904631,1747879843011,-430.0,0.00021917,2]
[361904632,1747879843021,-403.25929091,0.00021917,2]
[361904633,1747879843030,-409.3185351,0.00021917,2]
[361904634,1747879843039,-430.0,0.00021917,2]
[361904635,1747879843048,-430.0,0.00021917,2]
[361904636,1747879843058,-430.0,0.00021917,2]
[361904637,1747879843174,-430.0,0.00021917,2]
[361904638,1747879843184,-430.0,0.00021917,2]
[361904639,1747879843194,-430.0,0.00021917,2]
[361904640,1747879843204,-430.0,0.00021917,2]
[361904641,1747879843215,-430.0,0.00021917,2]
[361904642,1747879843225,-406.38244874,0.00021917,2]
[361904643,1747879843235,-430.0,0.00021917,2]
[361904644,1747879843245,-415.88761476,0.00021917,2]
[361904645,1747879843256,-430.0,0.00021917,2]
[361904646,1747879843273,-430.0,0.00021917,2]
[361904647,1747879843282,-430.0,0.00021917,2]
[361904648,1747879843291,-505.97655298,0.00021973,2]
[361904649,1747879843301,-508.05960681,0.00021973,2]
[361904650,1747879843311,-506.38654564,0.00021973,2]
[361904651,1747879843320,-1000.0,0.00022,3]
[361904652,1747879843329,-1243.96884507,0.00022072,6]
[361904653,1747879843339,-1068.73664734,0.00022091,2]
[361904654,1747879843349,-471.4949494,0.00022191,2]
[361904655,1747879843358,-402.47418272,0.00022191,2]
[361904656,1747879843368,-473.33947872,0.00022191,2]
[361904657,1747879843377,-377.04051909,0.00022191,2]
[361904658,1747879843387,-402.81718377,0.00022191,2]
[361904659,1747879843397,-453.96719962,0.00022191,2]
[361904660,1747879843407,-479.76070028,0.00022191,2]